[Event "FIDE Women World Rapid 2024"]
[Site "New York"]
[Date "2024.12.27"]
[Round "5.1"]
[White "Ju, Wenjun"]
[Black "Lee, Alice"]
[Result "1-0"]
[ECO "E24"]
[WhiteElo "2563"]
[BlackElo "2398"]
[Annotator "ChessBase"]
[PlyCount "141"]
[EventDate "2024.12.14"]
[EventType "swiss"]
[EventCountry "USA"]
[SourceTitle "playchess.com"]
[Source "ChessBase"]
[SourceQuality "1"]
[TimeControl "900+10"]

1. d4 {[%emt 0:00:10]} Nf6 {[%emt 0:00:06]} 2. c4 {[%emt 0:00:00]} e6 {[%emt 0:00:01]} 3. Nc3 {[%emt 0:00:00]} d5 {[%emt 0:00:03]} 4. cxd5 {[%emt 0:00:00]} exd5 {[%emt 0:00:02]} 5. Bg5 {[%emt 0:00:00]} Bb4 {[%emt 0:00:04]} 6. e3 {[%emt 0:00:03]} h6 {[%emt 0:00:02]} 7. Bxf6 {[%emt 0:00:02]} Qxf6 {[%emt 0:00:03]} 8. a3 {[%emt 0:00:01]} Bxc3+ {[%emt 0:00:09]} 9. bxc3 {[%emt 0:00:01]} O-O {[%emt 0:00:32]} 10. Ne2 {[%emt 0:00:25]} c5 {[%emt 0:03:09]} 11. Nf4 {[%emt 0:04:39]} Rd8 {[%emt 0:00:06]} 12. Be2 {[%emt 0:00:33]} Nc6 {[%emt 0:06:00]} 13. O-O {[%emt 0:00:42]} c4 {[%emt 0:01:16]} 14. Bf3 {[%emt 0:00:47]} Ne7 {[%emt 0:00:04]} 15. Rb1 {[%emt 0:00:48]} Rb8 {[%emt 0:00:50]} 16. Rb5 {[%emt 0:00:58]} Qa6 {[%emt 0:01:46]} 17. Qb1 {[%emt 0:03:23]} Qxa3 {[%emt 0:00:45]} 18. Nxd5 {[%emt 0:00:02]} Nxd5 {[%emt 0:00:08]} 19. Bxd5 {[%emt 0:01:16]} Qxc3 {[%emt 0:01:09]} 20. Rc1 {[%emt 0:00:24]} Qa3 {[%emt 0:00:35]} 21. Bxc4 {[%emt 0:00:14]} b6 {[%emt 0:00:10]} 22. h3 {[%emt 0:00:26]} Qf8 {[%emt 0:01:03]} 23. Qa2 {[%emt 0:00:32]} a6 {[%emt 0:00:07]} 24. Rb2 {[%emt 0:00:45]} b5 {[%emt 0:00:19]} 25. Bb3 {[%emt 0:00:01]} Qe7 {[%emt 0:00:11]} 26. Qa5 {[%emt 0:02:23]} Bb7 {[%emt 0:00:12]} 27. Qc7 {[%emt 0:00:05]} Qf6 {[%emt 0:00:15]} 28. Qg3 {[%emt 0:00:16]} Rbc8 {[%emt 0:00:10]} 29. Rbc2 {[%emt 0:00:01]} Rxc2 {[%emt 0:00:15]} 30. Rxc2 {[%emt 0:00:01]} Bd5 {[%emt 0:00:14]} 31. Bxd5 {[%emt 0:00:38]} Rxd5 {[%emt 0:00:02]} 32. Rc8+ {[%emt 0:00:01]} Rd8 {[%emt 0:00:19]} 33. Qc7 {[%emt 0:00:10]} Rxc8 {[%emt 0:00:01]} 34. Qxc8+ {[%emt 0:00:01]} Kh7 {[%emt 0:00:01]} 35. Qc5 {[%emt 0:00:02]} g5 {[%emt 0:00:29]} 36. d5 {[%emt 0:00:56]} Qa1+ {[%emt 0:00:02]} 37. Kh2 {[%emt 0:00:01]} Qe5+ {[%emt 0:00:01]} 38. g3 {[%emt 0:00:04]} Qf5 {[%emt 0:00:03]} 39. Kg1 {[%emt 0:00:25]} Qb1+ {[%emt 0:00:06]} 40. Kg2 {[%emt 0:00:11]} Qe4+ {[%emt 0:00:04]} 41. Kh2 {[%emt 0:00:18]} Qf5 {[%emt 0:00:14]} 42. e4 {[%emt 0:00:10]} Qxe4 {[%emt 0:00:01]} 43. d6 {[%emt 0:00:01]} Qd3 {[%emt 0:00:22]} 44. Qc7 {[%emt 0:00:04]} Qf5 {[%emt 0:00:11]} 45. Qa7 {[%emt 0:00:08]} Qd5 {[%emt 0:00:44]} 46. d7 {[%emt 0:00:06]} b4 {[%emt 0:00:08]} 47. Qc7 {[%emt 0:00:14]} Qf5 {[%emt 0:00:10]} 48. Kg1 {[%emt 0:00:21]} Qb1+ {[%emt 0:00:01]} 49. Kg2 {[%emt 0:00:01]} Qe4+ {[%emt 0:00:01]} 50. Kf1 {[%emt 0:00:01]} Qd3+ {[%emt 0:00:26]} 51. Ke1 {[%emt 0:00:01]} Qe4+ {[%emt 0:00:10]} 52. Kd2 {[%emt 0:00:12]} Qd4+ {[%emt 0:00:15]} 53. Kc2 {[%emt 0:00:08]} Qe4+ {[%emt 0:00:10]} 54. Kb2 {[%emt 0:00:30]} Qd4+ {[%emt 0:00:07]} 55. Kb3 {[%emt 0:00:02]} Qd1+ {[%emt 0:00:12]} 56. Kxb4 {[%emt 0:00:04]} Qd2+ {[%emt 0:00:09]} 57. Kc5 {[%emt 0:00:05]} Qxf2+ {[%emt 0:00:06]} 58. Kc6 {[%emt 0:00:02]} Qf3+ {[%emt 0:00:14]} 59. Kb6 {[%emt 0:00:04]} Qb3+ {[%emt 0:00:02]} 60. Ka7 {[%emt 0:00:11]} Qe3+ {[%emt 0:00:05]} 61. Kb7 {[%emt 0:00:14]} Qb3+ {[%emt 0:00:17]} 62. Qb6 {[%emt 0:00:30]} Qd5+ {[%emt 0:00:13]} 63. Kc7 {[%emt 0:00:09]} Qe5+ {[%emt 0:00:12]} 64. Kc8 {[%emt 0:00:05]} Qf5 {[%emt 0:00:11]} 65. g4 {[%emt 0:00:01]} Qc2+ {[%emt 0:00:04]} 66. Qc7 {[%emt 0:00:10]} Qe4 {[%emt 0:00:05]} 67. d8=Q {[%emt 0:00:11]} Qa8+ {[%emt 0:00:02]} 68. Kd7 {[%emt 0:00:01]} Qd5+ {[%emt 0:00:03]} 69. Ke8 {[%emt 0:00:16]} Qe4+ {[%emt 0:00:27]} 70. Kxf7 {[%emt 0:00:10]} Qg6+ {[%emt 0:00:19]} 71. Kf8+ {[%emt 0:00:02]} 1-0

[Event "FIDE Women World Rapid 2024"]
[Site "New York"]
[Date "2024.12.27"]
[Round "5.1"]
[White "Agrest, Inna"]
[Black "Kashlinskaya, Alina"]
[Result "0-1"]
[ECO "C78"]
[WhiteElo "2155"]
[BlackElo "2493"]
[Annotator "ChessBase"]
[PlyCount "104"]
[EventDate "2024.12.14"]
[EventType "swiss"]
[EventCountry "USA"]
[SourceTitle "playchess.com"]
[Source "ChessBase"]
[SourceQuality "1"]
[TimeControl "900+10"]

1. e4 {[%emt 0:00:02]} e5 {[%emt 0:00:01]} 2. Nf3 {[%emt 0:00:01]} Nc6 {[%emt 0:00:01]} 3. Bb5 {[%emt 0:00:02]} a6 {[%emt 0:00:01]} 4. Ba4 {[%emt 0:00:01]} Nf6 {[%emt 0:00:02]} 5. d3 {[%emt 0:00:02]} Bc5 {[%emt 0:00:06]} 6. c3 {[%emt 0:00:17]} d6 {[%emt 0:00:45]} 7. O-O {[%emt 0:00:09]} O-O {[%emt 0:00:03]} 8. h3 {[%emt 0:00:31]} h6 {[%emt 0:00:04]} 9. Re1 {[%emt 0:00:04]} Ba7 {[%emt 0:00:12]} 10. Nbd2 {[%emt 0:00:02]} Ne7 {[%emt 0:00:20]} 11. Nf1 {[%emt 0:00:11]} Ng6 {[%emt 0:00:02]} 12. Ng3 {[%emt 0:00:58]} d5 {[%emt 0:02:08]} 13. exd5 {[%emt 0:02:22]} Nxd5 {[%emt 0:01:02]} 14. d4 {[%emt 0:03:18]} exd4 {[%emt 0:00:16]} 15. cxd4 {[%emt 0:01:27]} c6 {[%emt 0:01:45]} 16. Bc2 {[%emt 0:00:16]} Re8 {[%emt 0:03:24]} 17. Rxe8+ {[%emt 0:00:28]} Qxe8 {[%emt 0:00:02]} 18. a3 {[%emt 0:00:20]} Be6 {[%emt 0:01:52]} 19. Qd3 {[%emt 0:00:51]} Rd8 {[%emt 0:00:01]} 20. Bd2 {[%emt 0:00:41]} Nf6 {[%emt 0:00:01]} 21. Re1 {[%emt 0:00:54]} Qd7 {[%emt 0:00:02]} 22. Ba5 {[%emt 0:00:26]} b6 {[%emt 0:00:18]} 23. Bd2 {[%emt 0:01:25]} c5 {[%emt 0:00:23]} 24. Qxa6 {[%emt 0:00:35]} Bb8 {[%emt 0:02:32]} 25. Qxb6 {[%emt 0:00:37]} Nd5 {[%emt 0:01:12]} 26. Qa6 {[%emt 0:00:50]} Ngf4 {[%emt 0:00:25]} 27. Bxf4 {[%emt 0:00:46]} Nxf4 {[%emt 0:00:02]} 28. Ne5 {[%emt 0:00:59]} Qxd4 {[%emt 0:00:48]} 29. Nc6 {[%emt 0:00:39]} Qd6 {[%emt 0:00:58]} 30. Rd1 {[%emt 0:00:25]} Bd5 {[%emt 0:00:23]} 31. Nxb8 {[%emt 0:00:10]} Qxb8 {[%emt 0:00:02]} 32. Qa5 {[%emt 0:00:18]} Re8 {[%emt 0:00:08]} 33. Qa4 {[%emt 0:00:13]} Bxg2 {[%emt 0:00:18]} 34. Bf5 {[%emt 0:00:08]} Bf3 {[%emt 0:00:10]} 35. Rc1 {[%emt 0:00:11]} g6 {[%emt 0:00:33]} 36. Bd7 {[%emt 0:00:07]} Ne2+ {[%emt 0:00:22]} 37. Nxe2 {[%emt 0:00:18]} Rxe2 {[%emt 0:00:01]} 38. Bg4 {[%emt 0:00:02]} Qxb2 {[%emt 0:00:10]} 39. Rf1 {[%emt 0:00:10]} Bxg4 {[%emt 0:00:04]} 40. Qxg4 {[%emt 0:00:02]} Re5 {[%emt 0:00:10]} 41. Qf3 {[%emt 0:00:13]} c4 {[%emt 0:00:19]} 42. Rd1 {[%emt 0:00:09]} Rg5+ {[%emt 0:00:04]} 43. Kf1 {[%emt 0:00:24]} Rf5 {[%emt 0:00:01]} 44. Qe3 {[%emt 0:00:03]} Qb7 {[%emt 0:00:16]} 45. Ke2 {[%emt 0:00:18]} Qc7 {[%emt 0:00:13]} 46. Kf1 {[%emt 0:00:06]} Qc6 {[%emt 0:00:33]} 47. Rd4 {[%emt 0:00:12]} c3 {[%emt 0:00:05]} 48. Rd8+ {[%emt 0:00:09]} Kh7 {[%emt 0:00:01]} 49. Qd4 {[%emt 0:00:01]} Qh1+ {[%emt 0:00:04]} 50. Ke2 {[%emt 0:00:01]} Qf3+ {[%emt 0:00:01]} 51. Ke1 {[%emt 0:00:04]} Rf6 {[%emt 0:00:05]} 52. Rd6 {[%emt 0:00:38]} c2 {[%emt 0:00:04]} 0-1

[Event "FIDE Women World Rapid 2024"]
[Site "New York"]
[Date "2024.12.27"]
[Round "5.2"]
[White "Batsiashvili, Nino"]
[Black "Tan, Zhongyi"]
[Result "1/2-1/2"]
[ECO "E43"]
[WhiteElo "2476"]
[BlackElo "2561"]
[Annotator "ChessBase"]
[PlyCount "106"]
[EventDate "2024.12.14"]
[EventType "swiss"]
[EventCountry "USA"]
[SourceTitle "playchess.com"]
[Source "ChessBase"]
[SourceQuality "1"]
[TimeControl "900+10"]

1. d4 {[%emt 0:00:01]} Nf6 {[%emt 0:00:02]} 2. c4 {[%emt 0:00:01]} e6 {[%emt 0:00:01]} 3. Nc3 {[%emt 0:00:03]} Bb4 {[%emt 0:00:02]} 4. Nf3 {[%emt 0:00:01]} b6 {[%emt 0:00:05]} 5. e3 {[%emt 0:00:01]} Bb7 {[%emt 0:00:01]} 6. Bd3 {[%emt 0:00:02]} O-O {[%emt 0:00:03]} 7. O-O {[%emt 0:00:05]} Bxc3 {[%emt 0:00:02]} 8. bxc3 {[%emt 0:00:02]} c5 {[%emt 0:00:01]} 9. Rb1 {[%emt 0:01:29]} d6 {[%emt 0:00:27]} 10. Qc2 {[%emt 0:00:04]} Bxf3 {[%emt 0:00:13]} 11. gxf3 {[%emt 0:00:01]} Nc6 {[%emt 0:00:05]} 12. Kh1 {[%emt 0:00:26]} e5 {[%emt 0:00:05]} 13. d5 {[%emt 0:00:43]} Ne7 {[%emt 0:00:11]} 14. Rg1 {[%emt 0:00:02]} Qd7 {[%emt 0:02:54]} 15. Qe2 {[%emt 0:00:26]} Ng6 {[%emt 0:00:18]} 16. f4 {[%emt 0:00:41]} exf4 {[%emt 0:00:51]} 17. exf4 {[%emt 0:00:02]} Qh3 {[%emt 0:00:46]} 18. Rg3 {[%emt 0:02:26]} Qh5 {[%emt 0:00:59]} 19. Qf1 {[%emt 0:02:28]} Ng4 {[%emt 0:02:26]} 20. Qg1 {[%emt 0:03:02]} f5 {[%emt 0:00:11]} 21. f3 {[%emt 0:00:04]} Nh6 {[%emt 0:00:37]} 22. Bf1 {[%emt 0:00:18]} Qh4 {[%emt 0:00:39]} 23. Rh3 {[%emt 0:00:15]} Qf6 {[%emt 0:00:01]} 24. Bd2 {[%emt 0:00:05]} Rae8 {[%emt 0:00:12]} 25. Bd3 {[%emt 0:00:12]} Kh8 {[%emt 0:02:07]} 26. Qg5 {[%emt 0:01:17]} Qxg5 {[%emt 0:02:42]} 27. fxg5 {[%emt 0:00:01]} Nf7 {[%emt 0:01:01]} 28. f4 {[%emt 0:00:47]} Nd8 {[%emt 0:00:00]} 29. Kg2 {[%emt 0:02:16]} Kg8 {[%emt 0:00:02]} 30. Kf2 {[%emt 0:00:01]} Nh8 {[%emt 0:00:06]} 31. Rg3 {[%emt 0:00:34]} Nb7 {[%emt 0:00:09]} 32. h4 {[%emt 0:00:04]} g6 {[%emt 0:00:14]} 33. h5 {[%emt 0:00:31]} gxh5 {[%emt 0:00:31]} 34. Rh1 {[%emt 0:00:12]} Ng6 {[%emt 0:00:02]} 35. Rxh5 {[%emt 0:00:01]} Na5 {[%emt 0:00:05]} 36. Rgh3 {[%emt 0:00:27]} Rf7 {[%emt 0:00:06]} 37. Rh6 {[%emt 0:00:04]} a6 {[%emt 0:00:32]} 38. a4 {[%emt 0:00:27]} Rfe7 {[%emt 0:01:55]} 39. Re3 {[%emt 0:01:32]} Rxe3 {[%emt 0:00:38]} 40. Bxe3 {[%emt 0:00:01]} Rf8 {[%emt 0:00:03]} 41. Rh1 {[%emt 0:00:03]} Ne7 {[%emt 0:00:10]} 42. Rb1 {[%emt 0:00:06]} Rb8 {[%emt 0:00:01]} 43. Kf3 {[%emt 0:00:02]} Kg7 {[%emt 0:00:03]} 44. Bf2 {[%emt 0:00:07]} Kg6 {[%emt 0:00:33]} 45. Re1 {[%emt 0:00:03]} Kf7 {[%emt 0:00:05]} 46. Re6 {[%emt 0:00:09]} Rd8 {[%emt 0:00:03]} 47. Re1 {[%emt 0:00:28]} Rb8 {[%emt 0:00:17]} 48. Rb1 {[%emt 0:00:23]} Kf8 {[%emt 0:00:10]} 49. Bg3 {[%emt 0:00:22]} Kf7 {[%emt 0:00:01]} 50. Bf2 {[%emt 0:00:01]} Kf8 {[%emt 0:00:00]} 51. Rh1 {[%emt 0:00:02]} Kg7 {[%emt 0:00:12]} 52. Re1 {[%emt 0:00:03]} Kf7 {[%emt 0:00:04]} 53. Rb1 {[%emt 0:00:02]} Kf8 {[%emt 0:00:02]} 1/2-1/2

[Event "FIDE Women World Rapid 2024"]
[Site "New York"]
[Date "2024.12.27"]
[Round "5.2"]
[White "Kamalidenova, Meruert"]
[Black "Kairbekova, Amina"]
[Result "1-0"]
[ECO "B30"]
[WhiteElo "2378"]
[BlackElo "2309"]
[Annotator "ChessBase"]
[PlyCount "133"]
[EventDate "2024.12.14"]
[EventType "swiss"]
[EventCountry "USA"]
[SourceTitle "playchess.com"]
[Source "ChessBase"]
[SourceQuality "1"]
[TimeControl "900+10"]

1. e4 {[%emt 0:00:02]} c5 {[%emt 0:00:01]} 2. Nf3 {[%emt 0:00:03]} Nc6 {[%emt 0:00:01]} 3. Bb5 {[%emt 0:00:04]} e6 {[%emt 0:00:01]} 4. O-O {[%emt 0:00:03]} Nge7 {[%emt 0:00:01]} 5. d4 {[%emt 0:00:03]} cxd4 {[%emt 0:00:01]} 6. Nxd4 {[%emt 0:00:03]} Qb6 {[%emt 0:00:01]} 7. Nxc6 {[%emt 0:00:05]} bxc6 {[%emt 0:00:02]} 8. Be2 {[%emt 0:00:02]} Ng6 {[%emt 0:00:08]} 9. c4 {[%emt 0:00:06]} Be7 {[%emt 0:00:08]} 10. Nc3 {[%emt 0:00:04]} O-O {[%emt 0:00:02]} 11. Rb1 {[%emt 0:00:02]} Qc7 {[%emt 0:00:36]} 12. Be3 {[%emt 0:00:29]} c5 {[%emt 0:00:16]} 13. Qc2 {[%emt 0:01:02]} a6 {[%emt 0:00:51]} 14. f4 {[%emt 0:01:17]} Bb7 {[%emt 0:00:00]} 15. g3 {[%emt 0:00:21]} d6 {[%emt 0:00:28]} 16. Rbd1 {[%emt 0:01:02]} Bf6 {[%emt 0:00:10]} 17. Bf3 {[%emt 0:00:31]} Ne7 {[%emt 0:00:23]} 18. Ne2 {[%emt 0:00:46]} Nc6 {[%emt 0:00:42]} 19. b3 {[%emt 0:00:14]} Rfd8 {[%emt 0:00:27]} 20. Bg2 {[%emt 0:01:14]} a5 {[%emt 0:01:11]} 21. g4 {[%emt 0:01:34]} h6 {[%emt 0:00:08]} 22. a4 {[%emt 0:00:46]} Rab8 {[%emt 0:00:21]} 23. Bf2 {[%emt 0:00:08]} Qe7 {[%emt 0:01:29]} 24. Rb1 {[%emt 0:01:16]} Ba8 {[%emt 0:00:37]} 25. Rfd1 {[%emt 0:00:14]} e5 {[%emt 0:00:35]} 26. f5 {[%emt 0:00:52]} Nd4 {[%emt 0:00:01]} 27. Qa2 {[%emt 0:00:05]} Bh4 {[%emt 0:01:07]} 28. Nc3 {[%emt 0:01:11]} Bxf2+ {[%emt 0:00:03]} 29. Qxf2 {[%emt 0:00:02]} Nxb3 {[%emt 0:02:22]} 30. Nb5 {[%emt 0:00:09]} Nd4 {[%emt 0:00:06]} 31. h4 {[%emt 0:00:12]} Bc6 {[%emt 0:00:07]} 32. Ra1 {[%emt 0:00:43]} Ra8 {[%emt 0:01:32]} 33. Ra3 {[%emt 0:00:15]} g5 {[%emt 0:01:24]} 34. Qd2 {[%emt 0:03:02]} f6 {[%emt 0:00:43]} 35. Kf2 {[%emt 0:00:11]} Qf7 {[%emt 0:01:47]} 36. Rh3 {[%emt 0:00:45]} Bxb5 {[%emt 0:01:15]} 37. cxb5 {[%emt 0:00:14]} Kg7 {[%emt 0:00:20]} 38. Rdh1 {[%emt 0:00:07]} Rh8 {[%emt 0:00:06]} 39. Bf1 {[%emt 0:00:26]} d5 {[%emt 0:00:39]} 40. Qc3 {[%emt 0:00:09]} dxe4 {[%emt 0:00:44]} 41. Bc4 {[%emt 0:00:18]} e3+ {[%emt 0:00:00]} 42. Kxe3 {[%emt 0:00:12]} Qb7 {[%emt 0:00:01]} 43. R1h2 {[%emt 0:00:24]} gxh4 {[%emt 0:00:06]} 44. Bd3 {[%emt 0:00:21]} Rad8 {[%emt 0:00:30]} 45. Be4 {[%emt 0:00:08]} Qf7 {[%emt 0:00:01]} 46. Rxh4 {[%emt 0:00:13]} c4 {[%emt 0:00:08]} 47. b6 {[%emt 0:00:08]} Nb3 {[%emt 0:00:23]} 48. g5 {[%emt 0:00:04]} hxg5 {[%emt 0:00:50]} 49. Rxh8 {[%emt 0:00:04]} Rxh8 {[%emt 0:00:01]} 50. Rxh8 {[%emt 0:00:04]} Kxh8 {[%emt 0:00:01]} 51. b7 {[%emt 0:00:04]} Qc7 {[%emt 0:00:01]} 52. Bd5 {[%emt 0:00:29]} Qb6+ {[%emt 0:00:37]} 53. Kf3 {[%emt 0:00:06]} Nd4+ {[%emt 0:00:01]} 54. Kg4 {[%emt 0:00:41]} Ne2 {[%emt 0:00:18]} 55. Qe3 {[%emt 0:00:28]} Nd4 {[%emt 0:00:14]} 56. Qh3+ {[%emt 0:00:04]} Kg7 {[%emt 0:00:01]} 57. Qh5 {[%emt 0:00:03]} Nxf5 {[%emt 0:00:18]} 58. Qf7+ {[%emt 0:00:16]} Kh6 {[%emt 0:00:02]} 59. Kxf5 {[%emt 0:00:02]} Qf2+ {[%emt 0:00:17]} 60. Ke6 {[%emt 0:00:03]} Qb6+ {[%emt 0:00:03]} 61. Kd7 {[%emt 0:00:02]} c3 {[%emt 0:00:12]} 62. Qf8+ {[%emt 0:00:13]} Kh5 {[%emt 0:00:11]} 63. b8=Q {[%emt 0:00:02]} Qd4 {[%emt 0:00:06]} 64. Qf7+ {[%emt 0:00:16]} Kh4 {[%emt 0:00:10]} 65. Qh8+ {[%emt 0:00:15]} Kg3 {[%emt 0:00:00]} 66. Qhxf6 {[%emt 0:00:03]} Qxa4+ {[%emt 0:00:29]} 67. Kd8 {[%emt 0:00:03]} 1-0

[Event "FIDE Women World Rapid 2024"]
[Site "New York"]
[Date "2024.12.27"]
[Round "5.3"]
[White "Dronavalli, Harika"]
[Black "Mammadzada, Gunay"]
[Result "1/2-1/2"]
[ECO "A07"]
[WhiteElo "2489"]
[BlackElo "2421"]
[Annotator "ChessBase"]
[PlyCount "97"]
[EventDate "2024.12.14"]
[EventType "swiss"]
[EventCountry "USA"]
[SourceTitle "playchess.com"]
[Source "ChessBase"]
[SourceQuality "1"]
[TimeControl "900+10"]

1. Nf3 {[%emt 0:00:03]} d5 {[%emt 0:00:02]} 2. g3 {[%emt 0:00:01]} Nf6 {[%emt 0:00:02]} 3. Bg2 {[%emt 0:00:02]} e6 {[%emt 0:00:01]} 4. O-O {[%emt 0:00:03]} Be7 {[%emt 0:00:02]} 5. d3 {[%emt 0:00:26]} O-O {[%emt 0:00:07]} 6. a4 {[%emt 0:00:03]} Nc6 {[%emt 0:00:17]} 7. Nbd2 {[%emt 0:00:02]} a5 {[%emt 0:01:53]} 8. e4 {[%emt 0:03:07]} dxe4 {[%emt 0:00:02]} 9. dxe4 {[%emt 0:00:01]} e5 {[%emt 0:00:04]} 10. Qe2 {[%emt 0:03:08]} Bc5 {[%emt 0:00:31]} 11. Nc4 {[%emt 0:01:14]} Qe7 {[%emt 0:00:03]} 12. c3 {[%emt 0:00:58]} h6 {[%emt 0:02:49]} 13. Ne3 {[%emt 0:00:37]} Bxe3 {[%emt 0:00:42]} 14. Bxe3 {[%emt 0:01:20]} Bg4 {[%emt 0:03:38]} 15. h3 {[%emt 0:00:47]} Bxf3 {[%emt 0:02:17]} 16. Bxf3 {[%emt 0:00:03]} Qe6 {[%emt 0:00:00]} 17. Kh2 {[%emt 0:01:11]} Ne7 {[%emt 0:01:23]} 18. Rfd1 {[%emt 0:01:06]} Nc8 {[%emt 0:01:03]} 19. Bc5 {[%emt 0:00:36]} Re8 {[%emt 0:00:23]} 20. Rd2 {[%emt 0:00:22]} Qc6 {[%emt 0:00:38]} 21. Qb5 {[%emt 0:00:12]} Qxb5 {[%emt 0:01:32]} 22. axb5 {[%emt 0:00:01]} b6 {[%emt 0:00:00]} 23. Ba3 {[%emt 0:00:03]} Na7 {[%emt 0:00:00]} 24. c4 {[%emt 0:00:03]} c6 {[%emt 0:00:01]} 25. bxc6 {[%emt 0:01:47]} Nxc6 {[%emt 0:00:01]} 26. Rd6 {[%emt 0:00:01]} Rac8 {[%emt 0:00:52]} 27. Kg2 {[%emt 0:00:19]} Re6 {[%emt 0:00:50]} 28. Rxe6 {[%emt 0:01:04]} fxe6 {[%emt 0:00:01]} 29. Bd6 {[%emt 0:00:22]} Nd4 {[%emt 0:00:19]} 30. Rc1 {[%emt 0:00:35]} Nxf3 {[%emt 0:00:19]} 31. Kxf3 {[%emt 0:00:02]} Nd7 {[%emt 0:00:07]} 32. b3 {[%emt 0:00:24]} Rc6 {[%emt 0:00:19]} 33. Rd1 {[%emt 0:00:09]} a4 {[%emt 0:00:07]} 34. Be7 {[%emt 0:00:22]} Nf6 {[%emt 0:00:14]} 35. bxa4 {[%emt 0:00:11]} Rxc4 {[%emt 0:00:01]} 36. Bxf6 {[%emt 0:00:02]} gxf6 {[%emt 0:00:01]} 37. Rd6 {[%emt 0:00:05]} Kf7 {[%emt 0:00:04]} 38. Rd7+ {[%emt 0:00:04]} Kg6 {[%emt 0:00:31]} 39. Rd6 {[%emt 0:00:04]} Rxa4 {[%emt 0:00:08]} 40. Rxe6 {[%emt 0:00:02]} b5 {[%emt 0:00:11]} 41. Rb6 {[%emt 0:00:01]} Rb4 {[%emt 0:00:03]} 42. g4 {[%emt 0:00:32]} Rb3+ {[%emt 0:00:05]} 43. Kg2 {[%emt 0:00:01]} b4 {[%emt 0:00:25]} 44. h4 {[%emt 0:00:02]} Rb1 {[%emt 0:00:10]} 45. Kf3 {[%emt 0:00:42]} b3 {[%emt 0:00:08]} 46. Kg2 {[%emt 0:00:09]} Kf7 {[%emt 0:00:09]} 47. Kf3 {[%emt 0:00:04]} Kg6 {[%emt 0:00:07]} 48. Kg2 {[%emt 0:00:03]} Kf7 {[%emt 0:00:01]} 49. Kf3 {[%emt 0:00:01]} 1/2-1/2

[Event "FIDE Women World Rapid 2024"]
[Site "New York"]
[Date "2024.12.27"]
[Round "5.3"]
[White "Cori T., Deysi"]
[Black "Khademalsharieh, Sarasadat"]
[Result "1/2-1/2"]
[ECO "D03"]
[WhiteElo "2353"]
[BlackElo "2458"]
[Annotator "ChessBase"]
[PlyCount "147"]
[EventDate "2024.12.14"]
[EventType "swiss"]
[EventCountry "USA"]
[SourceTitle "playchess.com"]
[Source "ChessBase"]
[SourceQuality "1"]
[TimeControl "900+10"]

1. d4 {[%emt 0:00:01]} d5 {[%emt 0:00:05]} 2. Bg5 {[%emt 0:00:03]} Nd7 {[%emt 0:00:25]} 3. e3 {[%emt 0:00:33]} Ngf6 {[%emt 0:00:03]} 4. Nd2 {[%emt 0:00:06]} h6 {[%emt 0:00:49]} 5. Bh4 {[%emt 0:00:01]} e6 {[%emt 0:00:09]} 6. Ngf3 {[%emt 0:01:49]} c5 {[%emt 0:00:19]} 7. c3 {[%emt 0:00:20]} Be7 {[%emt 0:00:51]} 8. Bd3 {[%emt 0:00:21]} b6 {[%emt 0:00:16]} 9. O-O {[%emt 0:00:59]} Bb7 {[%emt 0:00:03]} 10. Qe2 {[%emt 0:00:01]} O-O {[%emt 0:00:28]} 11. Ba6 {[%emt 0:01:36]} Bxa6 {[%emt 0:02:30]} 12. Qxa6 {[%emt 0:00:01]} Ne4 {[%emt 0:01:13]} 13. Bxe7 {[%emt 0:01:25]} Qxe7 {[%emt 0:00:02]} 14. Nxe4 {[%emt 0:00:02]} dxe4 {[%emt 0:00:02]} 15. Nd2 {[%emt 0:00:01]} f5 {[%emt 0:00:09]} 16. f3 {[%emt 0:01:25]} exf3 {[%emt 0:00:22]} 17. Rxf3 {[%emt 0:00:09]} e5 {[%emt 0:01:03]} 18. Raf1 {[%emt 0:00:54]} cxd4 {[%emt 0:02:07]} 19. exd4 {[%emt 0:00:06]} Qg5 {[%emt 0:00:29]} 20. Qe2 {[%emt 0:05:01]} e4 {[%emt 0:01:36]} 21. Rf4 {[%emt 0:01:47]} Rae8 {[%emt 0:01:32]} 22. Nc4 {[%emt 0:00:05]} Rf6 {[%emt 0:01:38]} 23. Ne3 {[%emt 0:00:05]} Ref8 {[%emt 0:00:02]} 24. Qf2 {[%emt 0:01:44]} R6f7 {[%emt 0:01:18]} 25. g4 {[%emt 0:00:17]} Kh7 {[%emt 0:00:52]} 26. Kh1 {[%emt 0:00:05]} Nf6 {[%emt 0:00:28]} 27. gxf5 {[%emt 0:00:03]} Re7 {[%emt 0:00:18]} 28. Rg1 {[%emt 0:00:17]} Qh5 {[%emt 0:00:01]} 29. Rg3 {[%emt 0:00:22]} Qf7 {[%emt 0:00:04]} 30. Rh4 {[%emt 0:00:12]} Nd5 {[%emt 0:00:17]} 31. Rg6 {[%emt 0:00:01]} Nxe3 {[%emt 0:00:17]} 32. Qxe3 {[%emt 0:00:00]} Qxf5 {[%emt 0:00:11]} 33. Rhxh6+ {[%emt 0:00:37]} Kg8 {[%emt 0:00:07]} 34. Rg1 {[%emt 0:00:07]} Qf3+ {[%emt 0:00:21]} 35. Qxf3 {[%emt 0:00:01]} exf3 {[%emt 0:00:01]} 36. Rhg6 {[%emt 0:00:04]} Rff7 {[%emt 0:00:06]} 37. R6g3 {[%emt 0:00:25]} Re2 {[%emt 0:00:01]} 38. b4 {[%emt 0:00:03]} Rxa2 {[%emt 0:00:02]} 39. Rf1 {[%emt 0:00:01]} f2 {[%emt 0:00:03]} 40. Kg2 {[%emt 0:00:01]} Rc2 {[%emt 0:00:01]} 41. d5 {[%emt 0:00:08]} b5 {[%emt 0:00:13]} 42. Rd3 {[%emt 0:00:01]} Kf8 {[%emt 0:00:07]} 43. d6 {[%emt 0:00:14]} Ke8 {[%emt 0:00:01]} 44. Rd5 {[%emt 0:00:04]} a6 {[%emt 0:00:24]} 45. Rc5 {[%emt 0:00:08]} Rf6 {[%emt 0:00:15]} 46. Rc7 {[%emt 0:00:35]} Rg6+ {[%emt 0:00:21]} 47. Kh1 {[%emt 0:00:28]} Kd8 {[%emt 0:00:31]} 48. Rf7 {[%emt 0:00:10]} Rxd6 {[%emt 0:00:10]} 49. Rxg7 {[%emt 0:00:08]} Rf6 {[%emt 0:00:06]} 50. Rg3 {[%emt 0:00:03]} Kd7 {[%emt 0:00:07]} 51. Kg2 {[%emt 0:00:02]} Kd6 {[%emt 0:00:01]} 52. h4 {[%emt 0:00:04]} Kd5 {[%emt 0:00:03]} 53. Rg4 {[%emt 0:00:21]} Ke5 {[%emt 0:00:38]} 54. h5 {[%emt 0:00:16]} Rxc3 {[%emt 0:00:03]} 55. Rxf2 {[%emt 0:00:04]} Rxf2+ {[%emt 0:00:02]} 56. Kxf2 {[%emt 0:00:00]} Rh3 {[%emt 0:00:01]} 57. Rg5+ {[%emt 0:00:32]} Kf4 {[%emt 0:00:07]} 58. Rg6 {[%emt 0:00:09]} Rxh5 {[%emt 0:00:03]} 59. Rxa6 {[%emt 0:00:00]} Ke4 {[%emt 0:00:05]} 60. Rc6 {[%emt 0:00:13]} Kd4 {[%emt 0:00:05]} 61. Ke2 {[%emt 0:00:04]} Rh2+ {[%emt 0:00:02]} 62. Kd1 {[%emt 0:00:02]} Rb2 {[%emt 0:00:02]} 63. Kc1 {[%emt 0:00:11]} Rxb4 {[%emt 0:00:01]} 64. Rd6+ {[%emt 0:00:04]} Kc3 {[%emt 0:00:04]} 65. Rh6 {[%emt 0:00:05]} Rb3 {[%emt 0:00:14]} 66. Rh4 {[%emt 0:00:21]} Rb4 {[%emt 0:00:10]} 67. Rxb4 {[%emt 0:00:16]} Kxb4 {[%emt 0:00:02]} 68. Kb2 {[%emt 0:00:01]} Kc4 {[%emt 0:00:10]} 69. Kc2 {[%emt 0:00:00]} b4 {[%emt 0:00:08]} 70. Kb2 {[%emt 0:00:01]} b3 {[%emt 0:00:02]} 71. Kb1 {[%emt 0:00:03]} Kb4 {[%emt 0:00:03]} 72. Kb2 {[%emt 0:00:01]} Ka4 {[%emt 0:00:01]} 73. Kb1 {[%emt 0:00:01]} Ka3 {[%emt 0:00:02]} 74. Ka1 {[%emt 0:00:01]} 1/2-1/2